Cogmind - Beta 14 @@@ ROGUE MODE // 2024.09.29 @ 18:46:58 Player: Plexion Result: Destroyed by G-47 Trooper with Particle Gun Performance ------------- Evolutions (2) 1000 Regions Visited (8) 1600 Robots Destroyed (82) 410 Value Destroyed (2550) 2550 Prototype IDs (26) 520 Alien Tech Used (0) 0 Bonus (1840) 1840 TOTAL SCORE: 7920 Bonus ------- High Alert Combat Kills 39 Follower Combat Kills 101 Entered Garrisons 400 Used RIF Installer 1000 Aligned with FarCom 300 Cogmind --------- Core Integrity 0/550 Matter 199/300 Energy 160/160 System Corruption 0% Temperature Warm (151) Movement Treading (235) Ox1 Location -8/Garrison Parts ------- > --- POWER (1) -------- Light Nuclear Core > --- PROPULSION (4) --- Advanced Treads Improved Medium Treads Improved Medium Treads > --- UTILITY (4) ------ Huge Storage Unit Salvage Targeting Computer Layered Light Armor Plating Layered Light Armor Plating > --- WEAPON (2) ------- Autogun Autogun > --- INVENTORY (25) --- Improved VTOL Module Improved VTOL Module Xenon Bombardment Thruster Xenon Bombardment Thruster Machine Analyzer Seismic Detector Modified TNC Light Armor Plating Light Armor Plating Relay Coupler [NC] (21) Relay Coupler [NC] (21) Relay Coupler [NC] (22) Relay Coupler [Grunt] (28) Relay Coupler [Sentry] (19) High-powered Tractor Beam Latent Energy Streamer Heavy Assault Rifle AWS/Gauss Improved Datajack Mining Laser Heavy Hammer Peak State ------------ > --- POWER ------------ (None) > --- PROPULSION ------- Advanced Treads Advanced Treads Improved Medium Treads Improved Medium Treads > --- UTILITY ---------- Huge Storage Unit Salvage Targeting Computer Layered Light Armor Plating Layered Light Armor Plating > --- WEAPON ----------- AWS/Gauss > --- INVENTORY -------- Improved VTOL Module Improved VTOL Module Xenon Bombardment Thruster Xenon Bombardment Thruster Machine Analyzer Seismic Detector Modified TNC Light Armor Plating Light Armor Plating Relay Coupler [NC] Relay Coupler [NC] Relay Coupler [NC] Relay Coupler [Grunt] Relay Coupler [Sentry] High-powered Tractor Beam Latent Energy Streamer Heavy Assault Rifle Autogun Autogun Improved Datajack Mining Laser Heavy Hammer [Rating: 49] Favorites ----------- Power Light Ion Engine Engine Light Ion Engine Power Core Light Nuclear Core Propulsion Light Treads Treads Light Treads Wheel Compact Wheel Flight Unit Improved VTOL Module Utility Huge Storage Unit Device Seismic Detector Storage Huge Storage Unit Processor Salvage Targeting Computer Protection Core Shielding Weapon Assault Rifle Energy Gun Medium Laser Energy Cannon Latent Energy Streamer Ballistic Gun Assault Rifle Special Weapon Mining Laser Build | -11 -10 -10 -10 -9 -8 -8 -8 -8 ------- Run | Yrd Mat Min Exi Min Mat Gar Mat Gar Slots Evolved 4 | . . . . . 4 . . . Power . | . . . . . . . . . Propulsion 2 | . . . . . 2 . . . Utility 2 | . . . . . 2 . . . Weapon . | . . . . . . . . . Parts Attached 92 | 7 15 10 1 1 6 10 27 15 Power 5 | 1 . . . . . 1 2 1 Engine 4 | 1 . . . . . 1 2 . Core 1 | . . . . . . . . 1 Reactor . | . . . . . . . . . Propulsion 36 | 2 7 6 1 . 4 4 8 4 Treads 24 | 2 3 3 . . 4 2 6 4 Leg . | . . . . . . . . . Wheel 11 | . 4 3 1 . . 2 1 . Hover . | . . . . . . . . . Flight 1 | . . . . . . . 1 . Utility 31 | 2 6 3 . . 2 2 12 4 Device 11 | 1 2 1 . . 1 1 5 . Storage 3 | 1 2 . . . . . . . Processor 3 | . 2 . . . . 1 . . Hackware . | . . . . . . . . . Protection 14 | . . 2 . . 1 . 7 4 Artifact . | . . . . . . . . . Weapon 20 | 2 2 1 . 1 . 3 5 6 Energy Gun 2 | . . 1 . . . 1 . . Energy Cannon 1 | . . . . . . . . 1 Ballistic Gun 16 | 2 1 . . 1 . 2 5 5 Ballistic Cannon . | . . . . . . . . . Launcher . | . . . . . . . . . Special Weapon 1 | . 1 . . . . . . . Impact Weapon . | . . . . . . . . . Slashing Weapon . | . . . . . . . . . Piercing Weapon . | . . . . . . . . . Special Melee Weapon . | . . . . . . . . . Unidentified Prototypes 3 | . . . . . . . 3 . Parts Lost 21 | . . 1 . . . 8 3 9 Power 4 | . . . . . . 2 1 1 Propulsion 9 | . . . . . . 4 1 4 Utility 3 | . . . . . . 1 . 2 Weapon 5 | . . 1 . . . 1 1 2 Highest Loss Streak 8 | . . 1 . . . 5 1 8 To Critical Strikes . | . . . . . . . . . Average Slot Usage (%) 96 | . 100 100 100 100 100 91 98 82 Engine 10 | . 14 14 14 14 9 7 8 1 Treads 21 | . 16 14 9 . 36 23 29 33 Wheel 9 | . 11 13 18 28 . 7 5 . Device 7 | . 13 4 . . 9 9 4 . Storage 11 | . 14 14 14 14 9 9 9 9 Processor 3 | . . . . . . 3 9 9 Protection 10 | . . 9 14 14 18 14 13 17 Energy Gun 5 | . . 10 14 14 9 9 1 . Ballistic Gun 17 | . 27 17 14 14 9 9 15 11 Peak Build Rating 49 | 7 9 8 12 14 17 25 35 49 Average Rating 17 | 5 7 7 9 12 16 22 26 41 On Entrance 13 | . 7 8 8 12 13 17 25 34 Naked Turns . | . . . . . . . . . Heaviest Build 103 | 13 88 88 88 89 93 96 100 103 Greatest Support 104 | 40 40 26 26 26 80 80 86 104 Greatest Overweight (x) 8 | . 5 8 8 3 1 3 6 4 Average Overweight (x) 3 | . 3 6 5 3 1 2 1 1 Largest Inventory Capacity 25 | 8 25 25 25 25 25 25 25 25 Average Capacity 23 | 7 20 25 25 25 25 25 25 25 Most Carried 25 | 4 15 15 18 24 22 25 25 25 Average Carried 18 | 2 11 14 15 21 19 23 24 22 Final Capacity 25 | 8 25 25 25 25 25 25 25 25 Final Carried 25 | 4 15 14 18 23 19 24 25 22 Class Distribution -------------------- 51% | Mutant 24% | Scavenger-Mutant 24% | Bothacker-Mutant Dominant Class ---------------- Mutant | -10/Materials Mutant | -10/Mines Mutant | -10/Exiles Mutant | -9/Mines Scavenger-Mutant | -8/Materials Scavenger-Mutant | -8/Garrison Bothacker-Mutant | -8/Materials Bothacker-Mutant | -8/Garrison Resources | -11 -10 -10 -10 -9 -8 -8 -8 -8 ----------- Run | Yrd Mat Min Exi Min Mat Gar Mat Gar Matter Collected 2121 | 286 444 195 . 30 . 294 676 196 Remotely 175 | . . . . . . . 175 . Salvage Created 3027 | 194 411 166 . . . 600 939 717 Parts 180 | 12 38 7 . . . 29 59 35 Haulers Intercepted 6 | . 2 . . . . . 4 . Recyclers Shooed 3 | 1 . 1 . . . . 1 . Parts Field Recycled . | . . . . . . . . . Retrieved Matter . | . . . . . . . . . Parts Self-Destructed . | . . . . . . . . . Prevented . | . . . . . . . . . Kills | -11 -10 -10 -10 -9 -8 -8 -8 -8 ------- Run | Yrd Mat Min Exi Min Mat Gar Mat Gar Combat Hostiles Destroyed 53 | . 8 5 . . . 17 10 13 Guns 52 | . 8 5 . . . 16 10 13 Classes Destroyed 12 | 3 6 . . . . 1 . 2 Worker 9 | 1 2 1 . . . . 5 . Builder 1 | . 1 . . . . . . . Tunneler 5 | 4 1 . . . . . . . Hauler 6 | . 2 . . . . . 4 . Recycler 3 | 1 . . . . . . 2 . Mechanic 2 | . 1 . . . . . 1 . Watcher 3 | . 3 . . . . . . . Swarmer 18 | . 6 3 . . . 7 2 . Grunt 25 | . 2 2 . . . 8 4 9 Brawler 2 | . . . . . . . . 2 Sentry 7 | . . . . . . 2 4 1 Behemoth 1 | . . . . . . . . 1 Best Kill Streak 8 | 6 5 3 . . . 5 3 8 Combat Bots Only 8 | . 3 3 . . . 5 2 8 Max Kills in Single Turn 1 | 1 1 1 . . . 1 1 1 Gunslinging . | . . . . . . . . . Exploded . | . . . . . . . . . Melee . | . . . . . . . . . Uniques/NPCs Destroyed . | . . . . . . . . . Combat | -11 -10 -10 -10 -9 -8 -8 -8 -8 -------- Run | Yrd Mat Min Exi Min Mat Gar Mat Gar Hostile Shots Fired 338 | . 28 33 . 10 . 99 65 103 Missed 83 | . 10 9 . 4 . 26 12 22 Damage Taken 4119 | . 166 302 . 90 . 898 684 1979 Core 639 | . 19 45 . 15 . 89 64 407 Absorbed by Shields 146 | . . . . . . 146 . . Redirected to Shielding 43 | . . 9 . 3 . 17 14 . Core Remaining (%) 84 | 100 . . . 68 . . . . Volleys Fired 242 | 8 53 18 . 2 . 70 67 24 Largest 2 | 2 2 2 . 2 . 2 2 2 Hottest 100 | 40 100 70 . 70 . 98 98 50 Shots Fired 516 | 16 98 36 . 4 . 121 134 107 Gun 515 | 16 97 36 . 4 . 121 134 107 Cannon . | . . . . . . . . . Launcher . | . . . . . . . . . Special 1 | . 1 . . . . . . . Kinetic 409 | 16 97 25 . 2 . 54 108 107 Thermal 107 | . 1 11 . 2 . 67 26 . Explosive . | . . . . . . . . . Electromagnetic . | . . . . . . . . . Robot Hit Streak 15 | 9 12 12 . 5 . 10 15 14 Robot Miss Streak 6 | 1 4 2 . . . 4 6 1 Penetration Max . | . . . . . . . . . Secondary Targets 6 | . 1 1 . . . 3 1 . Max Gunslinging Chain 1 | . 1 1 . . . 1 1 . Autonomous 59 | . . . . . . . . 59 Shots Hit Robots 345 | 11 55 24 . 4 . 69 90 92 Core Hits 129 | 7 27 10 . . . 26 32 27 Critical Kills . | . . . . . . . . . Critical Parts Destroyed 5 | . . . . . . . 1 4 Critical Strikes 10 | . . . . . . 3 3 4 Burn 5 | . . . . . . 3 2 . Destroy 5 | . . . . . . . 1 4 Melee Attacks . | . . . . . . . . . Impact . | . . . . . . . . . Slashing . | . . . . . . . . . Piercing . | . . . . . . . . . Sneak Attacks . | . . . . . . . . . Combat Hostiles . | . . . . . . . . . Follow-up Attacks . | . . . . . . . . . Damage Inflicted 6259 | 149 681 316 . 51 . 1238 1612 2212 Guns 6256 | 149 678 316 . 51 . 1238 1612 2212 Cannons . | . . . . . . . . . Explosions . | . . . . . . . . . Melee . | . . . . . . . . . Ramming 3 | . 3 . . . . . . . Kinetic 5028 | 149 678 255 . 25 . 493 1216 2212 Thermal 1228 | . . 61 . 26 . 745 396 . Explosive . | . . . . . . . . . Electromagnetic . | . . . . . . . . . Impact . | . . . . . . . . . Slashing . | . . . . . . . . . Piercing . | . . . . . . . . . Highest Corruption . | . . . . . . . . . Average Corruption . | . . . . . . . . . Corruption Purged . | . . . . . . . . . Corruption Blocked . | . . . . . . . . . Overload Shots . | . . . . . . . . . Overflow Damage . | . . . . . . . . . Projectiles . | . . . . . . . . . Explosions . | . . . . . . . . . Melee . | . . . . . . . . . Knockbacks . | . . . . . . . . . Impact . | . . . . . . . . . Kinetic . | . . . . . . . . . Secondary . | . . . . . . . . . Self-Inflicted Damage . | . . . . . . . . . Shots . | . . . . . . . . . Rammed 1 | . 1 . . . . . . . Targets Rammed 1 | . 1 . . . . . . . Kicked . | . . . . . . . . . Crushed . | . . . . . . . . . Highest Temperature 591 | . 20 90 . 18 . 27 75 591 Average Temperature 85 | . 8 25 . 10 . 9 14 245 Received Heat Transfer 2014 | . 30 165 . 42 . 447 216 1114 Effects 10 | . . . . . . . . 10 Shutdowns 1 | . . . . . . . . 1 Energy Bleed 1 | . . . . . . . . 1 Interference 1 | . . . . . . . . 1 Short Circuit 1 | . . . . . . . . 1 Damage (minor) 1 | . . . . . . . . 1 Damage (major) 4 | . . . . . . . . 4 Damage (core) 1 | . . . . . . . . 1 Siege Activations . | . . . . . . . . . Robots Corrupted . | . . . . . . . . . Combat Hostiles . | . . . . . . . . . Parts Fried . | . . . . . . . . . Impact Corruptions . | . . . . . . . . . Robots Melted 1 | . . . . . . 1 . . Combat Hostiles 1 | . . . . . . 1 . . Parts Melted 2 | . . . . . . 2 . . Heat Transferred 2775 | . . 185 . 74 . 1665 851 . Parts Sabotaged . | . . . . . . . . . Parts Stolen . | . . . . . . . . . Parts Stripped . | . . . . . . . . . Power Chain Reactions . | . . . . . . . . . Alert | -11 -10 -10 -10 -9 -8 -8 -8 -8 ------- Run | Yrd Mat Min Exi Min Mat Gar Mat Gar Peak Influence 704 | 30 162 125 . 42 16 704 456 340 Initial 343 | . 19 . . . 16 13 343 88 Average 161 | 10 46 14 . 15 16 328 263 128 Maximum Alert Level 3 | . . . . . . 3 2 1 Low Security (%) 65 | 100 100 100 . 100 100 20 33 92 Level 1 23 | . . . . . . 55 45 7 Level 2 7 | . . . . . . 12 21 . Level 3 2 | . . . . . . 11 . . Level 4 . | . . . . . . . . . Level 5 . | . . . . . . . . . High Security . | . . . . . . . . . Max Security . | . . . . . . . . . Squads Dispatched 2 | . . . . 1 . . 1 . Investigation . | . . . . . . . . . Extermination . | . . . . . . . . . Reinforcement 1 | . . . . . . . 1 . Assault 1 | . . . . 1 . . . . Garrison . | . . . . . . . . . Intercept . | . . . . . . . . . Searches Triggered . | . . . . . . . . . Construction Impeded . | . . . . . . . . . Haulers Reinforced . | . . . . . . . . . Active Scanning Responses . | . . . . . . . . . Cargo Convoy Interrupts . | . . . . . . . . . Stealth | -11 -10 -10 -10 -9 -8 -8 -8 -8 --------- Run | Yrd Mat Min Exi Min Mat Gar Mat Gar Distress Signals 5 | . 2 . . . . . 3 . Communications Jammed . | . . . . . . . . . Distress Signals . | . . . . . . . . . Times Spotted 78 | . 16 5 . 8 . 16 19 14 Peak Tracking Total 5 | . 5 3 . 5 . 4 3 5 Tactical Retreats 2 | . . . . . . 1 . 1 Traps | -11 -10 -10 -10 -9 -8 -8 -8 -8 ------- Run | Yrd Mat Min Exi Min Mat Gar Mat Gar Traps Triggered 11 | . . . . . . 9 . 2 Indirectly . | . . . . . . . . . Trap Hack Attempts . | . . . . . . . . . Triggered . | . . . . . . . . . Disarmed . | . . . . . . . . . Reprogrammed . | . . . . . . . . . Reused . | . . . . . . . . . Traps Extracted . | . . . . . . . . . Installed . | . . . . . . . . . Triggered . | . . . . . . . . . Most Traps Carried 3 | . . . . 3 3 3 . . Machines | -11 -10 -10 -10 -9 -8 -8 -8 -8 ---------- Run | Yrd Mat Min Exi Min Mat Gar Mat Gar Machines Disabled 3 | . . . . . . 3 . . Max in Single Turn 1 | . . . . . . 1 . . Garrison Relay 3 | . . . . . . 3 . . Machines Repaired . | . . . . . . . . . Machines Dismantled . | . . . . . . . . . Machines Sabotaged . | . . . . . . . . . Overloaded Fab Kills . | . . . . . . . . . Hacking | -11 -10 -10 -10 -9 -8 -8 -8 -8 --------- Run | Yrd Mat Min Exi Min Mat Gar Mat Gar Machines Accessed 16 | . 5 . 2 . 1 3 4 1 Terminals 12 | . 5 . . . . 3 3 1 Fabricators . | . . . . . . . . . Repair Stations . | . . . . . . . . . Recycling Units . | . . . . . . . . . Scanalyzers . | . . . . . . . . . Garrison Access 2 | . . . . . 1 . 1 . Total Hacks 38 | . 12 . 2 . 1 8 14 1 Successful 20 | . 7 . 2 . 1 2 7 1 Failed 18 | . 5 . . . . 6 7 . Catastrophic 1 | . . . . . . 1 . . Database Lockouts . | . . . . . . . . . Manual 28 | . 12 . 1 . . 2 13 . Terminals 34 | . 12 . . . . 8 13 1 Fabricators . | . . . . . . . . . Repair Stations . | . . . . . . . . . Recycling Units . | . . . . . . . . . Scanalyzers . | . . . . . . . . . Garrison Access 2 | . . . . . 1 . 1 . Terminal Hacks 8 | . 1 . 2 . . 1 3 1 Record 1 | . . . 1 . . . . . Emergency Access Points 2 | . . . . . . 1 . 1 Unreport Threat 1 | . . . . . . . 1 . Locate Traps 2 | . 1 . . . . . 1 . Zone Layout 1 | . . . . . . . 1 . Derelict Proto ID Bank 1 | . . . 1 . . . . . Fabricator Hacks . | . . . . . . . . . Repair Station Hacks . | . . . . . . . . . Recycling Unit Hacks . | . . . . . . . . . Scanalyzer . | . . . . . . . . . Garrison Access Hacks 2 | . . . . . 1 . 1 . Unlock Access 2 | . . . . . 1 . 1 . Unauthorized Hacks 10 | . 6 . . . . 1 3 . Terminals 10 | . 6 . . . . 1 3 . Botnet 2 | . . . . . . 1 1 . Operators 1 | . 1 . . . . . . . Skim 7 | . 5 . . . . . 2 . Fabricators . | . . . . . . . . . Repair Stations . | . . . . . . . . . Recycling Units . | . . . . . . . . . Scanalyzers . | . . . . . . . . . Garrison Access . | . . . . . . . . . Data Cores Recovered . | . . . . . . . . . Used . | . . . . . . . . . Hacking Detections 10 | . 5 . . . . 3 2 . Full Trace Events 1 | . . . . . . 1 . . Feedback Events . | . . . . . . . . . Feedback Blocked . | . . . . . . . . . Robot Schematics Acquired . | . . . . . . . . . Robots Built . | . . . . . . . . . Authchips . | . . . . . . . . . Time . | . . . . . . . . . Total Robot Build Rating . | . . . . . . . . . Part Schematics Acquired . | . . . . . . . . . Parts Built . | . . . . . . . . . Authchips . | . . . . . . . . . Time . | . . . . . . . . . Total Part Build Rating . | . . . . . . . . . Parts Repaired . | . . . . . . . . . Time . | . . . . . . . . . Parts Recycled . | . . . . . . . . . Recycled Matter . | . . . . . . . . . Retrieved Matter . | . . . . . . . . . Retrieved Components . | . . . . . . . . . Parts Scanalyzed . | . . . . . . . . . Part Schematics Acquired . | . . . . . . . . . Parts Damaged . | . . . . . . . . . Bothacking | -11 -10 -10 -10 -9 -8 -8 -8 -8 ------------ Run | Yrd Mat Min Exi Min Mat Gar Mat Gar Used RIF Installer 2 | . . . . . . 1 . 1 Program Shield 1 | . . . . . . . . 1 Robots Hacked . | . . . . . . . . . Non-combat . | . . . . . . . . . Combat . | . . . . . . . . . Robot Hacks Applied . | . . . . . . . . . Relay Couplers Released 11 | . . . . . . 11 . . Machine Destruction 11 | . . . . . . 11 . . Fabnet Peak Effective % . | . . . . . . . . . Robots Rewired . | . . . . . . . . . Allies Hacked . | . . . . . . . . . Hacks Repelled . | . . . . . . . . . Allies | -11 -10 -10 -10 -9 -8 -8 -8 -8 -------- Run | Yrd Mat Min Exi Min Mat Gar Mat Gar Total Allies 1 | . . . . 1 . . . . Largest Group 1 | . . . . 1 1 1 . . Highest-Rated Group 31 | . . . . 31 31 31 . . Highest-Rated Ally 31 | . . . . 31 31 31 . . Total Orders . | . . . . . . . . . Ally Attacks 13 | . . . . 9 . 4 . . Total Damage 248 | . . . . 187 . 61 . . Kills 3 | . . . . 2 . 1 . . Allies Corrupted . | . . . . . . . . . Allies Melted . | . . . . . . . . . Intel | -11 -10 -10 -10 -9 -8 -8 -8 -8 ------- Run | Yrd Mat Min Exi Min Mat Gar Mat Gar Robot Analysis Total . | . . . . . . . . . Derelict Logs Recovered 1 | . . 1 . . . . . . Drone Launches . | . . . . . . . . . Drone Recoveries . | . . . . . . . . . Exploration | -11 -10 -10 -10 -9 -8 -8 -8 -8 ------------- Run | Yrd Mat Min Exi Min Mat Gar Mat Gar Turns Passed 7266 | 150 1813 916 541 110 63 1579 1484 610 Spaces Moved 3194 | 72 764 449 312 60 23 708 599 207 Core 3 | 3 . . . . . . . . Treads 1204 | 69 258 . . . 23 299 348 207 Legs . | . . . . . . . . . Wheels 1987 | . 506 449 312 60 . 409 251 . Hover . | . . . . . . . . . Flight . | . . . . . . . . . Fastest Speed 50 | 50 135 135 135 135 240 135 135 152 Average Speed 182 | 155 165 188 172 135 240 179 196 236 Slowest Speed 465 | 160 320 200 200 135 240 240 240 465 Overloaded Moves . | . . . . . . . . . Propulsion Burnouts . | . . . . . . . . . Robots Hopped . | . . . . . . . . . Cave-ins Triggered . | . . . . . . . . . Exploration Rate (%) 46 | 4 84 96 70 15 5 73 40 32 Regions Visited 8 Branch Regions 3 Pre-discovered Areas 2 | . . 1 1 . . . . . Known Exits Taken 2 | . . . . . 1 . 1 . Unknown Exits Taken 5 | 1 1 1 1 1 . . . . Scrap Searched 1 | . . 1 . . . . . . Spaces Dug 1 | . 1 . . . . . . . Terrain Destroyed 7 | . 1 . . . . . . 6 Melee . | . . . . . . . . . Projectile 7 | . 1 . . . . . . 6 AOE . | . . . . . . . . . Terrain Rammed . | . . . . . . . . . Walls Destroyed . | . . . . . . . . . Machines Disabled . | . . . . . . . . . Actions | -11 -10 -10 -10 -9 -8 -8 -8 -8 --------- Run | Yrd Mat Min Exi Min Mat Gar Mat Gar Total 4216 | 91 1210 479 315 85 29 898 817 292 Wait 553 | . 362 3 . 17 . 55 72 44 Move 3188 | 71 763 448 311 59 23 707 599 207 Hop . | . . . . . . . . . Pick Up 58 | 5 13 . 3 5 . 14 18 . Fast Attach 23 | 6 . . . . . 2 11 4 Attach 21 | 1 2 1 . . 4 5 1 7 Detach 4 | . 2 . . . . . . 2 Swap 49 | . 13 9 1 1 2 3 16 4 Drop 39 | . 1 . . 1 . 4 33 . Fire 242 | 8 53 18 . 2 . 70 67 24 Melee . | . . . . . . . . . Ram . | . . . . . . . . . Kick . | . . . . . . . . . Crush 1 | . 1 . . . . . . . Escape Stasis 38 | . . . . . . 38 . . Rewire . | . . . . . . . . . Trap . | . . . . . . . . . Miscellaneous . | . . . . . . . . . Route ------- -11/Scrapyard -10/Materials (discovered 5 exits: *Mat x3 / [*Min] / Sub) -10/Mines (discovered 4 exits: *Mat x2 / *Exi / *Sub) -10/Exiles -9/Mines -8/Materials -8/Garrison -8/Materials (discovered 2 exits: [*Fac] / Gar) -8/Garrison History --------- Turn | Location | Event 18 | -11/Scrapyard | Discovered new exit (range 16) 151 | -11/Scrapyard | Entered Materials 304 | -10/Materials | Build established: Mutant 497 | -10/Materials | Discovered new exit (range 16) 825 | -10/Materials | Discovered new exit (range 11) 937 | -10/Materials | Discovered new exit (range 3) 1613 | -10/Materials | Identified exit to Materials 1673 | -10/Materials | Identified exit to Subcaves 1723 | -10/Materials | Learned Storage trap positions 1761 | -10/Materials | Learned Storage stockpile data 1872 | -10/Materials | Learned location of 2 exits from Subcaves 1964 | -10/Materials | Entered Mines 1965 | -10/Mines | Learned location of Storage (-7) 1993 | -10/Mines | Deemed a non-threat by the Exiles lab entrance 2334 | -10/Mines | Learned Materials stockpile data 2778 | -10/Mines | Discovered exit to Subcaves (range 15) 2872 | -10/Mines | Discovered new exit (range 5) 2880 | -10/Mines | Entered Exiles 2930 | -10/Exiles | Met 8R-AWN 2962 | -10/Exiles | Met EX-HEX 3056 | -10/Exiles | Met EX-DEC 3094 | -10/Exiles | Learned location of Zion (-6) 3206 | -10/Exiles | Met EX-BIN 3234 | -10/Exiles | Aligned with FarCom system 3236 | -10/Exiles | Given EX-Vault access code 3269 | -10/Exiles | Opened EX-Vault 3276 | -10/Exiles | Found AWS/Gauss 3281 | -10/Exiles | Found Latent Energy Streamer 3287 | -10/Exiles | Found Modified TNC 3318 | -10/Exiles | Warned to stay clear of 0b10 Research branches 3327 | -10/Exiles | Exiles lab attacked by MAIN.C 3406 | -10/Exiles | Discovered new exit (range 14) 3421 | -10/Exiles | Stole three prototypes: Modified TNC, Latent Energy Streamer, AWS/Gauss 3421 | -10/Exiles | Entered Mines 3422 | -9/Mines | Met a Derelict testing a Signal Generator 3428 | -9/Mines | Found Signal Generator 3452 | -9/Mines | Found a hidden stash of uninstalled traps 3470 | -9/Mines | Discovered new exit (range 15) 3531 | -9/Mines | Entered Materials 3531 | -8/Materials | Accompanied by 1 ally 3531 | -8/Materials | Evolved 4 slots: Propulsion x2, Utility x2 3594 | -8/Materials | Identified exit to Garrison 3594 | -8/Materials | Entered Garrison 3594 | -8/Garrison | Accompanied by 1 ally 3679 | -8/Garrison | Triggered checkpoint 3688 | -8/Garrison | Triggered checkpoint 3824 | -8/Garrison | Build established: Scavenger-Mutant 3896 | -8/Garrison | Triggered checkpoint 3913 | -8/Garrison | Garrison Relay disabled 4470 | -8/Garrison | Triggered checkpoint 4533 | -8/Garrison | Lost 5 parts (1p3n1u) 4623 | -8/Garrison | Garrison Relay disabled 4650 | -8/Garrison | Triggered checkpoint 4704 | -8/Garrison | Discovered new exit (range 3) 4732 | -8/Garrison | Installed Relay Interface Framework 4999 | -8/Garrison | Garrison Relay disabled 5173 | -8/Garrison | Entered Materials 5794 | -8/Materials | Build established: Bothacker-Mutant 6111 | -8/Materials | Discovered new exit (range 11) 6657 | -8/Materials | Identified exit to Garrison 6657 | -8/Materials | Entered Garrison 6746 | -8/Garrison | Spotted B-75 Beast 6748 | -8/Garrison | Expanded RIF knowledge: Program Shield 6776 | -8/Garrison | Core integrity fell below 50% 6795 | -8/Garrison | Core integrity fell below 20% 6820 | -8/Garrison | Destroyed B-75 Beast 6841 | -8/Garrison | Lost 8 parts (1p3n2u2w) 7207 | -8/Garrison | Triggered checkpoint 7217 | -8/Garrison | Triggered checkpoint 7267 | -8/Garrison | Destroyed by G-47 Trooper with Particle Gun Last Messages --------------- 07224_ Critical hit (Burn: +37). 07226_ Slug penetrates Wall. 07226_ Adv. Treads destroyed. 07227_ G-50 Soldier destroyed. 07227_ Acquired Lgt. Nuclear Core. 07227_ Critical hit (Burn: +37). 07228_ Slug penetrates G-47 Trooper. 07228_ Slug penetrates Reinforced Barrier. 07229_ Slug penetrates G-47 Trooper. 07229_ Slug penetrates Wall. 07231_ Slug penetrates G-47 Trooper. 07231_ G-47 Trooper destroyed. 07233_ Slug penetrates G-47 Trooper. 07233_ G-47 Trooper destroyed. 07234_ Slug penetrates Wall. 07236_ Slug penetrates B-36 Bruiser. 07249_ B-36 Bruiser suffers critical hit (Destroy). 07249_ Destroyed Lgt. Treads. 07252_ B-36 Bruiser destroyed. 07260_ G-47 Trooper destroyed. Map ----- +----------------------------------------------------+ | ??????????????????# ###### !#????????????????? | | ??????????????????# + #????????????????? | | ??????????????????# + #????????????????? | | ???###+##???####### #++### !#????????????????? | | ???# #???#% % !" !# #?#] !#????????????????? | | ???# #???#" ]!] " #?#]]] !#????????????????? | | ???# #???#"%% " ####?####+##????????????????? | | ???### #???####### " #?????????????????????????? | | ?????# #?????????# ###?????????????????????????? | | ?????+ +?????????# #???????????????????????????? | | ?????# #?????????# #???????????????????????????? | | ?????# #?????????# #???????????????????????????? | | ?????# #####+##### #########+#??????????????+??? | | ?????# = #?????????????????? | | ?????# =[! #?????????????????? | | ?????#+######%##### ######## #??????????????+??? | | ???????????#=!#???# T#?????# #?????????????????? | | ???????????##%#???# ##?????# #?????????????????? | | ????????????#!#???# #??????# #?????????????????? | | ######+######%#???# #??????# #?????????+???????? | | /=[+???+ #??????# #???###???????????? | | ### ## ## #####???# #??????#[ #?? #???????????? | | ??# ## ## ##??????# #?????##=%## ## ##??????? | | ??# !# !# #??????# #######[!!= #??????? | | ??# !# !# #??????# =g * +??????? | | ??# !# !# !#??????# @%%! #??????? | | ??#+##+##+##??????##+#######%[%## ## #??????? | | ??# ## ## ########## #?????#[%=#? #??? #??????? | | ??# +???+?"%* ? ??????????? | | ??####################???? " ^ ????????? | | ?????????????????????????# "??????? | | ?????????????????????????# ^^ "??????? | | ?????????????????????????### ## ## #??????? | | ???????????????????????????# #? #? #??????? | | ??????????????????????????? ?? ? #??????? | | ??????????????????????????? ?? ???+??????? | | ???????????????????????????# ?? ?????????? | | ???????????????????????????##"###??""##??????????? | | ????????????????????????????? ???g??g????????????? | | ????????????????????????????? ???????????????????? | | ????????????????????????????? ???????????????????? | | ????????????????????+????????????????????????????? | | ?????????????????????????????????????????????????? | | ?????????????????????????????????????????????????? | | ??????????????????????????????????????????????+??? | | ?????????????????????????????????????????????????? | | ?????????????????????????????????????????????????? | | ????????????????????????????????????????????++???? | | ????????????????????+????????????????????????????? | | ?????????????????????????????????????????????????? | +----------------------------------------------------+ Best States ------------- Heat Dissipation 45 Energy Generation 14 Energy Capacity 265 Matter Stores 300 Matter Capacity 300 Sight Range 16 Terrain Scan Density 10 Armor Coverage 375 Core Shielding 20 Evasion (%) 40 Targeting Accuracy 6 Recoil Reduction 4 Salvage Targeting 1 Item Schematics ----------------- None Robot Schematics ------------------ None Fabricated ------------ Nothing Alien Tech Used ----------------- None Achievements -------------- None Challenges ------------ None Game ------ Seed BombardmentGreatMagmablaster Manual? 0 Play Time 00:39:18 Cumulative 629.2 hours Start 2024.09.28 @ 20:45:21 End 2024.09.29 @ 18:46:58 Sessions 3 Manual Loads 0 Difficulty Rogue Special Mode None Game No. 683 Rogue 596 Adventurer 87 Explorer 0 Win Type - Total 38 Types 8/0/24/1/1/1/3/0/0 Lore% 95 Gallery% 93 Achievement% 80 Wizard Run 0 Options --------- Layout 0 ASCII 0 Keyboard 1 Movement Numpad Keybinds 0 Fullscreen 2 Font 18/SmallcapsGlow Map View 76x50 Zoom Use 0% Tactical HUD 1 Map Filters NONE Filters NONE Steam 1 RUN: af599125-bf96-42de-b297-68d9db8cc516